Cogmind - Beta 11 X11 @@@ ROGUE MODE // 2022.03.15 @ 02:51:22 Player: Shin Result: Destroyed by D-53 Grenadier with Mini Grenade Launcher Performance ------------- Evolutions (1) 500 Regions Visited (3) 600 Robots Destroyed (21) 105 Value Destroyed (530) 530 Prototype IDs (0) 0 Alien Tech Used (0) 0 Bonus (0) 0 TOTAL SCORE: 1735 Bonus ------- None Cogmind --------- Core Integrity 0/400 Matter 153/300 Energy 76/100 System Corruption 0% Temperature Cool (0) Movement Core (100) Ox1 Location -9/Mines Parts ------- > --- POWER (1) -------- (None) > --- PROPULSION (2) --- (None) > --- UTILITY (4) ------ Small Storage Unit Advanced Terrain Scan Processor > --- WEAPON (2) ------- (None) > --- INVENTORY (8) ---- Wheel Hardlight Generator Beam Rifle Light Assault Rifle Flak Gun Peak State ------------ > --- POWER ------------ (None) > --- PROPULSION ------- Xenon Bombardment Thruster Xenon Bombardment Thruster > --- UTILITY ---------- Small Storage Unit Advanced Terrain Scan Processor > --- WEAPON ----------- Gauss Cannon Heavy Rocket Launcher > --- INVENTORY -------- Wheel Hardlight Generator Beam Rifle Light Assault Rifle Flak Gun [Rating: 22] Favorites ----------- Power Ion Engine Engine Ion Engine Propulsion Wheel Treads Light Treads Leg Aluminum Leg Wheel Wheel Flight Unit Xenon Bombardment Thruster Utility Huge Storage Unit Device Terrain Scanner Storage Huge Storage Unit Processor Advanced Terrain Scan Processor Protection Light Armor Plating Weapon Assault Rifle Energy Gun Beam Rifle Energy Cannon EM Pulse Cannon Ballistic Gun Assault Rifle Ballistic Cannon Gauss Cannon Launcher Rocket Launcher Build | -11 -10 -9 -9 ------- Run | Scr Mat Mat Min Slots Evolved 2 | . . 2 . Power . | . . . . Propulsion . | . . . . Utility 2 | . . 2 . Weapon . | . . . . Parts Attached 37 | 2 6 10 19 Power 1 | . . 1 . Engine 1 | . . 1 . Core . | . . . . Reactor . | . . . . Propulsion 11 | . 2 2 7 Treads 4 | . . 2 2 Leg 2 | . . . 2 Wheel 3 | . 2 . 1 Hover . | . . . . Flight 2 | . . . 2 Utility 15 | 2 4 3 6 Device 7 | 2 2 1 2 Storage 4 | . 2 . 2 Processor 1 | . . . 1 Hackware . | . . . . Protection 3 | . . 2 1 Artifact . | . . . . Weapon 10 | . . 4 6 Energy Gun 1 | . . 1 . Energy Cannon 2 | . . . 2 Ballistic Gun 3 | . . 2 1 Ballistic Cannon 1 | . . . 1 Launcher 3 | . . 1 2 Special Weapon . | . . . . Impact Weapon . | . . . . Slashing Weapon . | . . . . Piercing Weapon . | . . . . Special Melee Weapon . | . . . . Unidentified Prototypes . | . . . . Parts Lost 8 | . . 5 3 Power 1 | . . 1 . Propulsion 3 | . . 1 2 Utility 3 | . . 3 . Weapon 1 | . . . 1 Highest Loss Streak 2 | . . 2 2 To Critical Strikes . | . . . . Average Slot Usage (%) 85 | . 92 86 76 Engine 10 | . 14 10 7 Treads 4 | . . 2 14 Leg 1 | . 8 . . Wheel 14 | . 19 17 . Device 14 | . 6 16 13 Storage 10 | . 14 11 8 Protection 4 | . . 5 6 Energy Gun 2 | . . 2 3 Ballistic Gun 17 | . 28 18 5 Naked Turns 18 | . . . 18 Heaviest Build 101 | 15 90 97 101 Greatest Support 40 | 20 20 40 40 Greatest Overweight (x) 9 | . 4 9 3 Average Overweight (x) 3 | . 3 4 1 Largest Inventory Capacity 25 | 8 25 25 25 Average Capacity 22 | 8 22 25 19 Most Carried 20 | 8 9 20 20 Average Carried 12 | 6 8 13 14 Final Capacity 25 | 8 25 25 8 Final Carried 20 | 7 8 20 5 Class Distribution -------------------- 71% | Mutant 28% | Scavenger-Mutant Dominant Class ---------------- Mutant | -10/Materials Mutant | -9/Materials Mutant | -9/Mines Resources | -11 -10 -9 -9 ----------- Run | Scr Mat Mat Min Matter Collected 954 | 264 49 525 116 Remotely 10 | 10 . . . Salvage Created 967 | 100 180 603 84 Parts 49 | 3 11 34 1 Haulers Intercepted 2 | . 1 1 . Recyclers Shooed 2 | . . 1 1 Parts Field Recycled . | . . . . Retrieved Matter . | . . . . Parts Self-Destructed . | . . . . Prevented . | . . . . Kills | -11 -10 -9 -9 ------- Run | Scr Mat Mat Min Combat Hostiles Destroyed 15 | . 3 11 1 Guns 14 | . 3 11 . Cannons 1 | . . . 1 Classes Destroyed 9 | 2 2 4 1 Tunneler 1 | 1 . . . Hauler 2 | . 1 1 . Recycler 3 | 1 . 1 1 Operator 1 | . . 1 . Swarmer 2 | . . 2 . Grunt 6 | . 3 3 . Brawler 1 | . . 1 . Sentry 5 | . . 5 . Assembled 1 | . . . 1 Best Kill Streak 2 | 2 2 2 1 Combat Bots Only 2 | . 2 2 1 Max Kills in Single Turn 1 | 1 1 1 1 Gunslinging . | . . . . Exploded . | . . . . Melee . | . . . . Uniques/NPCs Destroyed . | . . . . Combat | -11 -10 -9 -9 -------- Run | Scr Mat Mat Min Damage Taken 1697 | . 157 678 862 Core 463 | . 55 113 295 Absorbed by Shields 41 | . . . 41 Regen/Repaired (Parts) 5 | . 5 . . Core Remaining (%) 89 | 100 78 . . Volleys Fired 88 | 9 17 52 10 Largest 2 | 2 2 2 2 Hottest 86 | 40 40 79 86 Shots Fired 172 | 18 34 103 17 Gun 161 | 18 34 102 7 Cannon 7 | . . . 7 Launcher 4 | . . 1 3 Special . | . . . . Kinetic 144 | 18 34 85 7 Thermal 17 | . . 17 . Explosive 4 | . . 1 3 Electromagnetic 7 | . . . 7 Robot Hit Streak 9 | 4 9 8 5 Robot Miss Streak 4 | 4 3 4 4 Penetration Max . | . . . . Secondary Targets 1 | . . 1 . Max Gunslinging Chain 1 | . . 1 . Shots Hit Robots 101 | 9 23 62 7 Core Hits 35 | 3 7 23 2 Critical Kills 1 | . . 1 . Critical Parts Destroyed 1 | . 1 . . Critical Strikes 4 | . 1 2 1 Destroy 3 | . 1 2 . Corrupt 1 | . . . 1 Melee Attacks . | . . . . Impact . | . . . . Slashing . | . . . . Piercing . | . . . . Sneak Attacks . | . . . . Combat Hostiles . | . . . . Follow-up Attacks . | . . . . Damage Inflicted 1434 | 120 276 910 128 Guns 1260 | 120 276 837 27 Cannons 75 | . . . 75 Explosions 78 | . . 52 26 Melee . | . . . . Ramming 21 | . . 21 . Kinetic 1085 | 120 276 662 27 Thermal 201 | . . 175 26 Explosive 52 | . . 52 . Electromagnetic 75 | . . . 75 Impact . | . . . . Slashing . | . . . . Piercing . | . . . . Highest Corruption . | . . . . Average Corruption . | . . . . Corruption Purged . | . . . . Corruption Blocked . | . . . . Overload Shots . | . . . . Overflow Damage . | . . . . Projectiles . | . . . . Explosions . | . . . . Melee . | . . . . Knockbacks . | . . . . Impact . | . . . . Kinetic . | . . . . Secondary . | . . . . Self-Inflicted Damage 10 | . . 10 . Shots . | . . . . Rammed 1 | . . 1 . Targets Rammed 1 | . . 1 . Kicked . | . . . . Crushed . | . . . . Highest Temperature 72 | . . 5 72 Average Temperature 25 | . . 3 30 Received Heat Transfer 270 | . 84 171 15 Siege Activations . | . . . . Robots Corrupted . | . . . . Combat Hostiles . | . . . . Parts Fried . | . . . . Impact Corruptions . | . . . . Robots Melted . | . . . . Combat Hostiles . | . . . . Parts Melted . | . . . . Heat Transferred 444 | . . 444 . Parts Sabotaged . | . . . . Parts Stolen . | . . . . Parts Stripped . | . . . . Power Chain Reactions 1 | . . . 1 Missiles Intercepted . | . . . . Alert | -11 -10 -9 -9 ------- Run | Scr Mat Mat Min Peak Influence 255 | 10 101 255 155 Initial 43 | . 6 42 43 Average 105 | 5 45 133 103 Maximum Alert Level 1 | . . 1 . Low Security (%) 85 | 100 100 74 100 Level 1 14 | . . 25 . Level 2 . | . . . . Level 3 . | . . . . Level 4 . | . . . . Level 5 . | . . . . High Security . | . . . . Max Security . | . . . . Squads Dispatched 3 | . 1 1 1 Investigation 1 | . . . 1 Extermination . | . . . . Reinforcement 2 | . 1 1 . Assault . | . . . . Garrison . | . . . . Intercept . | . . . . Searches Triggered . | . . . . Construction Impeded . | . . . . Haulers Reinforced . | . . . . Active Scanning Responses . | . . . . Cargo Convoy Interrupts . | . . . . Stealth | -11 -10 -9 -9 --------- Run | Scr Mat Mat Min Distress Signals 2 | . 1 1 . Communications Jammed . | . . . . Distress Signals . | . . . . Times Spotted 35 | . 6 22 7 Peak Tracking Total 4 | . 4 4 3 Tactical Retreats 3 | . . 2 1 Traps | -11 -10 -9 -9 ------- Run | Scr Mat Mat Min Traps Triggered . | . . . . Indirectly . | . . . . Trap Hack Attempts . | . . . . Triggered . | . . . . Disarmed . | . . . . Reprogrammed . | . . . . Reused . | . . . . Traps Extracted . | . . . . Installed . | . . . . Triggered . | . . . . Machines | -11 -10 -9 -9 ---------- Run | Scr Mat Mat Min Machines Disabled . | . . . . Max in Single Turn . | . . . . Machines Sabotaged . | . . . . Garrisons Compromised . | . . . . Overloaded Fab Kills . | . . . . Hacking | -11 -10 -9 -9 --------- Run | Scr Mat Mat Min Machines Accessed 6 | . 2 3 1 Terminals 2 | . 1 1 . Fabricators . | . . . . Repair Stations 1 | . 1 . . Recycling Units . | . . . . Scanalyzers 2 | . . 2 . Garrison Access . | . . . . Total Hacks 19 | . 5 13 1 Successful 17 | . 4 12 1 Failed 2 | . 1 1 . Catastrophic . | . . . . Database Lockouts . | . . . . Manual 2 | . 1 1 . Terminals 4 | . 2 2 . Fabricators . | . . . . Repair Stations 3 | . 3 . . Recycling Units . | . . . . Scanalyzers 11 | . . 11 . Garrison Access . | . . . . Terminal Hacks 4 | . 1 2 1 Open Door 1 | . . . 1 Alert Level 2 | . 1 1 . Unreport Threat 1 | . . 1 . Fabricator Hacks . | . . . . Repair Station Hacks 2 | . 2 . . Scan Component 1 | . 1 . . Repair 1 | . 1 . . Recycling Unit Hacks . | . . . . Scanalyzer 10 | . . 10 . Insert Component 5 | . . 5 . Analyze 5 | . . 5 . Garrison Access Hacks . | . . . . Unauthorized Hacks 1 | . 1 . . Terminals . | . . . . Fabricators . | . . . . Repair Stations 1 | . 1 . . Mechanics 1 | . 1 . . Recycling Units . | . . . . Scanalyzers . | . . . . Garrison Access . | . . . . Data Cores Recovered 1 | . . 1 . Used . | . . . . Hacking Detections 4 | . 1 3 . Full Trace Events . | . . . . Feedback Events . | . . . . Feedback Blocked . | . . . . Robot Schematics Acquired . | . . . . Robots Built . | . . . . Authchips . | . . . . Time . | . . . . Total Robot Build Rating . | . . . . Part Schematics Acquired 5 | . . 5 . Parts Built . | . . . . Authchips . | . . . . Time . | . . . . Total Part Build Rating . | . . . . Parts Repaired 1 | . 1 . . Time 26 | . 26 . . Parts Recycled . | . . . . Recycled Matter . | . . . . Retrieved Matter . | . . . . Retrieved Components . | . . . . Parts Scanalyzed 5 | . . 5 . Part Schematics Acquired 5 | . . 5 . Parts Damaged 2 | . . 2 . Bothacking | -11 -10 -9 -9 ------------ Run | Scr Mat Mat Min Used RIF Installer . | . . . . Robots Hacked . | . . . . Non-combat . | . . . . Combat . | . . . . Robot Hacks Applied . | . . . . Relay Couplers Released . | . . . . Fabnet Peak Effective % . | . . . . Robots Rewired . | . . . . Allies Hacked . | . . . . Hacks Repelled . | . . . . Allies | -11 -10 -9 -9 -------- Run | Scr Mat Mat Min Total Allies . | . . . . Largest Group . | . . . . Highest-Rated Group . | . . . . Highest-Rated Ally . | . . . . Total Orders . | . . . . Ally Attacks . | . . . . Total Damage . | . . . . Kills . | . . . . Allies Corrupted . | . . . . Allies Melted . | . . . . Intel | -11 -10 -9 -9 ------- Run | Scr Mat Mat Min Robot Analysis Total . | . . . . Derelict Logs Recovered . | . . . . Drone Launches . | . . . . Drone Recoveries . | . . . . Exploration | -11 -10 -9 -9 ------------- Run | Scr Mat Mat Min Turns Passed 1359 | 68 227 786 278 Spaces Moved 638 | 30 113 366 129 Core 40 | . . . 40 Treads 72 | . . 26 46 Legs 61 | 30 31 . . Wheels 422 | . 82 340 . Hover . | . . . . Flight 43 | . . . 43 Fastest Speed 37 | 120 120 140 37 Average Speed 156 | 120 144 159 166 Slowest Speed 400 | 120 400 320 320 Overloaded Moves . | . . . . Propulsion Burnouts . | . . . . Robots Hopped . | . . . . Cave-ins Triggered . | . . . . Exploration Rate (%) 26 | 4 24 31 47 Regions Visited 3 Branch Regions 1 Pre-discovered Areas . | . . . . Known Exits Taken . | . . . . Unknown Exits Taken 3 | 1 1 1 . Scrap Searched . | . . . . Spaces Dug 42 | . . . 42 Terrain Destroyed 60 | . . 11 49 Melee . | . . . . Projectile . | . . . . AOE 60 | . . 11 49 Terrain Rammed . | . . . . Walls Destroyed . | . . . . Machines Disabled . | . . . . Actions | -11 -10 -9 -9 --------- Run | Scr Mat Mat Min Total 826 | 44 142 471 169 Wait 21 | . . 18 3 Move 635 | 29 112 365 129 Hop . | . . . . Pick Up 31 | 3 4 21 3 Fast Attach 7 | . . . 7 Attach 12 | 1 1 7 3 Detach . | . . . . Swap 18 | 1 5 3 9 Drop 13 | 1 3 4 5 Fire 88 | 9 17 52 10 Melee . | . . . . Ram 1 | . . 1 . Kick . | . . . . Crush . | . . . . Escape Stasis . | . . . . Rewire . | . . . . Trap . | . . . . Miscellaneous . | . . . . Route ------- -11/Scrapyard -10/Materials (discovered 2 exits: *Mat / [*Min]) -9/Materials -9/Mines History --------- Turn | Location | Event 1 | -11/Scrapyard | Discovered new exit (range 3) 69 | -11/Scrapyard | Entered Materials 164 | -10/Materials | Repaired Seismic Detector? 185 | -10/Materials | Discovered new exit (range 16) 287 | -10/Materials | Discovered new exit (range 6) 296 | -10/Materials | Entered another Materials area 296 | -9/Materials | Evolved 2 slots: Utility x2 312 | -9/Materials | Build established: Mutant 819 | -9/Materials | Discovered new exit (range 14) 1082 | -9/Materials | Entered Mines 1083 | -9/Mines | Assembled infested the area 1132 | -9/Mines | Received a Rocket Launcher from a helpful Derelict 1279 | -9/Mines | Released all parts (8) 1281 | -9/Mines | Core integrity fell below 50% 1296 | -9/Mines | Met a Derelict shopkeep closing up shop 1338 | -9/Mines | Core integrity fell below 20% 1360 | -9/Mines | Destroyed by D-53 Grenadier with Mini Grenade Launcher Last Messages --------------- 01310_ Acquired Flak Gun. 01320_ G-34 Mercenary destroyed. 01326_ K-01 Serf destroyed. 01327_ K-01 Serf collects debris. 01328_ JO-K5X(g) destroyed. 01331_ The unstable cave ceiling collapses. 01331_ K-01 Serf collects debris. 01339_ Acquired 40 matter. 01339_ R-06 Scavenger collects Sml. Laser. 01342_ Acquired 42 matter. 01344_ Acquired Sml. Storage Unit. 01346_ R-06 Scavenger destroyed. 01346_ as-71015 destroyed. 01351_ Xenon Bombardment Thruster destroyed. 01354_ Dropped Sml. Storage Unit. 01355_ Dropped Hvy. Rocket Launcher. 01355_ Xenon Bombardment Thruster destroyed. 01355_ Dropped Gauss Cannon. 01356_ Acquired Sml. Storage Unit. 01358_ R-06 Scavenger collects Tractor Beam. Map ----- +----------------------------------------------------+ | | | | | | | | | | | | | ?????????????????????????????????????????????????? | | ?????????????????????????????????????????????????? | | ?????????????????????????????????????????????????? | | ?????????????????????????????????????????????????? | | ?????????????????????????????????????????????????? | | ?????????????????????????????????????????????????? | | ?????????????????????????????????????????????????? | | ?????????????????????????????????????????????????? | | ????????????##???????????????????????????????????? | | ????????????#!%??????????????????????????????????? | | ????????????#=!??????????????????????????????????? | | ????????????# |??????????????????????????????????? | | ????????????# ##????????????????????????????????? | | ?????##????## ##??####????????????????????????? | | ?????# #### ####$ ???????#????????????????? | | ?????? # ###??? ?????????????????? | | ????? #?? #??????????????????? | | ??????? * ## #??????????????????? | | ???????????#=%= ] #??????????????????? | | ????????????#! @ #??????????????????? | | ???????????##% ] #####??????????????????? | | ???????????# % % #??????????????????????? | | ???????????# #??????????????????????? | | ???????????## d # ##??????????????????????? | | ????????????# d #####???????????????????????? | | ????????????## =r####???????????????????????????? | | ?????????????# = !##????????????????????????????? | | ?????????????# #????????????????????????????? | | ?????????????## ! #????????????????????????????? | | ?#????????????# ##% #????????????###?????????????? | | ?# ????????## ### #???????????# ????????????? | | ?# ?????# #??????##### ????????????? | | ??# ####!#### ####### ???????????? | | ????# % ???????????? | | ?????# ## ???????????? | | ??????????# = # ##### #????????????? | | ?????????# % #???# ??????????????? | | ?????????## #???# %#????????????????? | | ????????## ##### #?????????????????? | | ?####?### #?????????????????? | | ?#" ### # # #?????????????????? | | ?#" #X ##?######### ##?????????????????? | | ?#" ##??????????# ##??????????????????? | | ?#"] ##???????????## ##?????????#####?????? | +----------------------------------------------------+ Best States ------------- Heat Dissipation 38 Energy Generation 10 Energy Capacity 250 Matter Stores 300 Matter Capacity 300 Sight Range 16 Robot Scan Range 14 Terrain Scan Range 14 Terrain Scan Density 210 Armor Coverage 150 Evasion (%) 62 Recoil Reduction 2 Item Schematics ----------------- Rnf. Ion Engine | -9/Materials | Scanalyzed Hvy. Assault Rifle | -9/Materials | Scanalyzed Grenade Launcher | -9/Materials | Scanalyzed Hcp. Matter Pod | -9/Materials | Scanalyzed Hpw. Tractor Beam | -9/Materials | Scanalyzed Robot Schematics ------------------ None Fabricated ------------ Nothing Alien Tech Used ----------------- None Achievements -------------- None Challenges ------------ None Game ------ Seed BlastMagneticLaser Manual? 0 Play Time 00:38:55 Cumulative 37.2 hours Start 2022.03.15 @ 02:08:50 End 2022.03.15 @ 02:51:22 Sessions 1 Manual Loads 0 Difficulty Rogue Special Mode None Game No. 27 Rogue 27 Adventurer 0 Explorer 0 Win Type - Total 0 Types 0/0/0/0/0/0/0/0/0 Lore% 30 Gallery% 37 Achievement% 26 Wizard Run 0 Options --------- ASCII 0 Keyboard 0 Movement Mouse Keybinds 1 Fullscreen 1 Font 18/TerminusBold Map View 76x50 Tactical HUD 1 Map Filters NONE Filters NONE Steam 1 RUN: 90e34a4a-9e3a-4985-8fa5-0c5bfaad2987